[Event "*** Titled Tuesday Blitz"]
[Site "Chess.com"]
[Date "2021.04.27"]
[Round "7"]
[White "KonstantinB_1983"]
[Black "GMJustin"]
[Result "1-0"]
[WhiteElo "2508"]
[BlackElo "2305"]
[TimeControl "180+1"]
[EndTime "11:18:07 PDT"]
[Termination "KonstantinB_1983 won on time"]

1. d4 {[%clk 0:03:00.9]} 1... Nf6 {[%clk 0:02:57]} 2. c4 {[%clk 0:03:00.6]} 2...
e6 {[%clk 0:02:55.7]} 3. Nc3 {[%clk 0:03:00.9]} 3... Bb4 {[%clk 0:02:53.4]} 4.
f3 {[%clk 0:03:00.9]} 4... O-O {[%clk 0:02:44.5]} 5. e4 {[%clk 0:02:59.9]} 5...
d5 {[%clk 0:02:37]} 6. cxd5 {[%clk 0:02:56]} 6... exd5 {[%clk 0:02:36]} 7. e5
{[%clk 0:02:55]} 7... Nfd7 {[%clk 0:02:22.4]} 8. a3 {[%clk 0:02:50.5]} 8...
Bxc3+ {[%clk 0:02:12.9]} 9. bxc3 {[%clk 0:02:50.3]} 9... f6 {[%clk 0:02:06.5]}
10. f4 {[%clk 0:02:44.2]} 10... fxe5 {[%clk 0:02:03.5]} 11. dxe5 {[%clk
0:02:43.2]} 11... Nc5 {[%clk 0:01:51.7]} 12. Nf3 {[%clk 0:02:41.3]} 12... Ne4
{[%clk 0:01:45]} 13. Qb3 {[%clk 0:02:36.3]} 13... c6 {[%clk 0:01:37.4]} 14. Be3
{[%clk 0:02:32.4]} 14... Nd7 {[%clk 0:01:27.4]} 15. Be2 {[%clk 0:02:30.2]} 15...
Ndc5 {[%clk 0:01:22.4]} 16. Qc2 {[%clk 0:02:07.2]} 16... Qa5 {[%clk 0:01:05.1]}
17. Bd4 {[%clk 0:01:52.7]} 17... Rxf4 {[%clk 0:01:01]} 18. O-O {[%clk
0:01:51.5]} 18... Bf5 {[%clk 0:00:53.3]} 19. Qc1 {[%clk 0:01:47]} 19... Rxf3
{[%clk 0:00:22.3]} 20. gxf3 {[%clk 0:01:42.4]} 20... Nb3 {[%clk 0:00:21.4]} 21.
Qf4 {[%clk 0:01:27.6]} 21... Nxc3 {[%clk 0:00:15.8]} 22. Bxc3 {[%clk 0:01:20.8]}
22... Qxc3 {[%clk 0:00:16.7]} 23. Rae1 {[%clk 0:01:14.9]} 23... Nd4 {[%clk
0:00:12.2]} 24. Bd1 {[%clk 0:01:12.3]} 24... Rf8 {[%clk 0:00:08.6]} 25. Qg5
{[%clk 0:01:06.5]} 25... Qc5 {[%clk 0:00:06.1]} 26. Kh1 {[%clk 0:01:03.8]} 26...
Ne6 {[%clk 0:00:05.1]} 27. Qg3 {[%clk 0:01:01.2]} 27... d4 {[%clk 0:00:04.9]}
28. Rg1 {[%clk 0:00:59.8]} 28... d3 {[%clk 0:00:04.9]} 29. f4 {[%clk 0:00:56.5]}
29... Qd4 {[%clk 0:00:04.8]} 30. Ref1 {[%clk 0:00:46.6]} 30... d2 {[%clk
0:00:04.7]} 31. Bf3 {[%clk 0:00:45.3]} 31... Be4 {[%clk 0:00:04.5]} 32. Rd1
{[%clk 0:00:41.7]} 32... Rxf4 {[%clk 0:00:03.7]} 33. Rgf1 {[%clk 0:00:36.6]}
33... Rxf3 {[%clk 0:00:03.5]} 34. Rxf3 {[%clk 0:00:36.3]} 34... Qd5 {[%clk
0:00:03.9]} 35. Kg2 {[%clk 0:00:34.7]} 35... Nd4 {[%clk 0:00:04.1]} 36. Rxd2
{[%clk 0:00:30.3]} 36... Bxf3+ {[%clk 0:00:04.3]} 37. Kf2 {[%clk 0:00:29.6]}
37... Qe4 {[%clk 0:00:03.6]} 38. Qg5 {[%clk 0:00:29]} 38... Ne6 {[%clk
0:00:01.9]} 39. Qe7 {[%clk 0:00:24.7]} 39... Qf5 {[%clk 0:00:02.2]} 40. Qe8+
{[%clk 0:00:23.3]} 40... Nf8 {[%clk 0:00:01.8]} 41. Ke3 {[%clk 0:00:20.4]} 41...
Bd5 {[%clk 0:00:01.9]} 42. Rf2 {[%clk 0:00:19.3]} 42... Qe4+ {[%clk 0:00:02.2]}
43. Kd2 {[%clk 0:00:19.3]} 43... Qd4+ {[%clk 0:00:02.7]} 44. Ke1 {[%clk
0:00:19.3]} 44... Qe3+ {[%clk 0:00:02.9]} 45. Re2 {[%clk 0:00:18.6]} 45... Qg1+
{[%clk 0:00:02.7]} 46. Kd2 {[%clk 0:00:18]} 46... Qd4+ {[%clk 0:00:02.9]} 47.
Ke1 {[%clk 0:00:17.8]} 47... Qc3+ {[%clk 0:00:02.9]} 48. Kf2 {[%clk 0:00:17.5]}
48... Bc4 {[%clk 0:00:02.8]} 49. Re3 {[%clk 0:00:15.6]} 49... Qd2+ {[%clk
0:00:03.1]} 50. Kf3 {[%clk 0:00:15.6]} 50... Bd5+ {[%clk 0:00:03.6]} 51. Kf4
{[%clk 0:00:14.9]} 51... Qf2+ {[%clk 0:00:03.7]} 52. Kg4 {[%clk 0:00:14.1]}
52... Qxe3 {[%clk 0:00:04]} 53. Qe7 {[%clk 0:00:13.9]} 53... Qe4+ {[%clk
0:00:04.1]} 54. Kg3 {[%clk 0:00:13.7]} 54... Be6 {[%clk 0:00:04]} 55. Qg5 {[%clk
0:00:12.6]} 55... Qf5 {[%clk 0:00:03]} 56. Qe3 {[%clk 0:00:12]} 56... h5 {[%clk
0:00:02.3]} 57. Kg2 {[%clk 0:00:11.6]} 57... Qg4+ {[%clk 0:00:02.5]} 58. Kf2
{[%clk 0:00:11.2]} 58... h4 {[%clk 0:00:02.9]} 59. Ke1 {[%clk 0:00:10.9]} 59...
Qf5 {[%clk 0:00:03.2]} 60. Kd2 {[%clk 0:00:10.8]} 60... Bd5 {[%clk 0:00:03.6]}
61. Kc3 {[%clk 0:00:10.9]} 61... Qf3 {[%clk 0:00:03.8]} 62. Qxf3 {[%clk
0:00:11.2]} 62... Bxf3 {[%clk 0:00:04.2]} 63. Kd4 {[%clk 0:00:11.7]} 63... Ne6+
{[%clk 0:00:04.7]} 64. Ke3 {[%clk 0:00:12.5]} 64... g5 {[%clk 0:00:04.4]} 65. a4
{[%clk 0:00:13.3]} 65... Kf7 {[%clk 0:00:04.7]} 66. a5 {[%clk 0:00:13.7]} 66...
Kg6 {[%clk 0:00:05]} 67. a6 {[%clk 0:00:14]} 67... g4 {[%clk 0:00:05]} 68. h3
{[%clk 0:00:14.7]} 68... Nd8 {[%clk 0:00:03.3]} 69. hxg4 {[%clk 0:00:13.7]}
69... Bxg4 {[%clk 0:00:03.1]} 70. e6 {[%clk 0:00:13.3]} 70... bxa6 {[%clk
0:00:02.1]} 71. e7 {[%clk 0:00:11.3]} 71... Nf7 {[%clk 0:00:02.3]} 72. e8=Q
{[%clk 0:00:11]} 1-0

[Event "*** Titled Tuesday Blitz"]
[Site "Chess.com"]
[Date "2021.04.27"]
[Round "7"]
[White "ChessteacherPalmS"]
[Black "ariosp"]
[Result "1-0"]
[WhiteElo "2389"]
[BlackElo "2203"]
[TimeControl "180+1"]
[EndTime "11:18:07 PDT"]
[Termination "ChessteacherPalmS won on time"]

1. d4 {[%clk 0:03:00.9]} 1... Nf6 {[%clk 0:02:58.9]} 2. c4 {[%clk 0:03:00.6]}
2... e6 {[%clk 0:02:58.7]} 3. Nf3 {[%clk 0:03:00.5]} 3... c5 {[%clk 0:02:58.3]}
4. d5 {[%clk 0:03:00.2]} 4... b5 {[%clk 0:02:58.5]} 5. Bg5 {[%clk 0:02:56.9]}
5... b4 {[%clk 0:02:56.7]} 6. e4 {[%clk 0:02:47.2]} 6... h6 {[%clk 0:02:56.2]}
7. Bxf6 {[%clk 0:02:46.6]} 7... Qxf6 {[%clk 0:02:52.4]} 8. e5 {[%clk 0:02:46.8]}
8... Qd8 {[%clk 0:02:51.8]} 9. Nbd2 {[%clk 0:02:39.3]} 9... Bb7 {[%clk
0:02:51.2]} 10. d6 {[%clk 0:02:37.9]} 10... Nc6 {[%clk 0:02:48.6]} 11. Nb3
{[%clk 0:02:25.4]} 11... Qb6 {[%clk 0:02:48.1]} 12. Bd3 {[%clk 0:02:17.8]} 12...
a5 {[%clk 0:02:46.8]} 13. a4 {[%clk 0:02:15.5]} 13... O-O-O {[%clk 0:02:39.5]}
14. Qe2 {[%clk 0:02:01.6]} 14... f6 {[%clk 0:02:37.2]} 15. Rd1 {[%clk
0:01:53.5]} 15... fxe5 {[%clk 0:02:33.7]} 16. Nxe5 {[%clk 0:01:53.4]} 16... Bxd6
{[%clk 0:02:22.7]} 17. Nf7 {[%clk 0:01:50.6]} 17... Bc7 {[%clk 0:02:20.1]} 18.
Nxh8 {[%clk 0:01:44]} 18... Rxh8 {[%clk 0:02:19.5]} 19. Be4 {[%clk 0:01:42.6]}
19... Nd4 {[%clk 0:01:57.9]} 20. Nxd4 {[%clk 0:01:42.1]} 20... cxd4 {[%clk
0:01:57.3]} 21. Bxb7+ {[%clk 0:01:35.7]} 21... Qxb7 {[%clk 0:01:57.3]} 22. Rxd4
{[%clk 0:01:25.2]} 22... Qxg2 {[%clk 0:01:54.4]} 23. Qe4 {[%clk 0:01:24.8]}
23... Qxe4+ {[%clk 0:01:50.7]} 24. Rxe4 {[%clk 0:01:24.7]} 24... Rf8 {[%clk
0:01:46.7]} 25. h4 {[%clk 0:01:20.3]} 25... Bf4 {[%clk 0:01:40.8]} 26. h5 {[%clk
0:00:58.1]} 26... e5 {[%clk 0:01:40.1]} 27. Rg1 {[%clk 0:00:54.3]} 27... Rf7
{[%clk 0:01:37.9]} 28. Rg6 {[%clk 0:00:53.8]} 28... Kb7 {[%clk 0:01:29.2]} 29.
Ke2 {[%clk 0:00:50.7]} 29... Re7 {[%clk 0:01:28.6]} 30. Kf3 {[%clk 0:00:47.1]}
30... Rf7 {[%clk 0:01:27.8]} 31. Kg2 {[%clk 0:00:44.1]} 31... Re7 {[%clk
0:01:27.3]} 32. b3 {[%clk 0:00:44.1]} 32... Rf7 {[%clk 0:01:27]} 33. f3 {[%clk
0:00:42.6]} 33... Re7 {[%clk 0:01:25.2]} 34. Kh3 {[%clk 0:00:42.7]} 34... Rf7
{[%clk 0:01:24.6]} 35. Kg4 {[%clk 0:00:42.5]} 35... Re7 {[%clk 0:01:24.1]} 36.
Re1 {[%clk 0:00:36]} 36... Rf7 {[%clk 0:01:18.7]} 37. Rd1 {[%clk 0:00:35.7]}
37... Be3 {[%clk 0:01:11.1]} 38. Rd5 {[%clk 0:00:33.6]} 38... Bd4 {[%clk
0:01:03.6]} 39. Rb5+ {[%clk 0:00:29.3]} 39... Kc7 {[%clk 0:00:59.5]} 40. Rxa5
{[%clk 0:00:29]} 40... Rf4+ {[%clk 0:00:58.6]} 41. Kg3 {[%clk 0:00:27.9]} 41...
Rf5 {[%clk 0:00:58.7]} 42. Rxg7 {[%clk 0:00:23.3]} 42... Rxh5 {[%clk 0:00:55.5]}
43. Rd5 {[%clk 0:00:22.4]} 43... Rh1 {[%clk 0:00:50.6]} 44. Rgxd7+ {[%clk
0:00:20.8]} 44... Kc6 {[%clk 0:00:47.3]} 45. R7d6+ {[%clk 0:00:15]} 45... Kc7
{[%clk 0:00:45.2]} 46. a5 {[%clk 0:00:14.8]} 46... h5 {[%clk 0:00:43.7]} 47. Rh6
{[%clk 0:00:10.8]} 47... h4+ {[%clk 0:00:38.6]} 48. Kg2 {[%clk 0:00:09.6]} 48...
Rg1+ {[%clk 0:00:35.9]} 49. Kh3 {[%clk 0:00:09.9]} 49... Rh1+ {[%clk 0:00:32.8]}
50. Kg4 {[%clk 0:00:10.1]} 50... Rg1+ {[%clk 0:00:30.4]} 51. Kxh4 {[%clk
0:00:09.7]} 51... Rh1+ {[%clk 0:00:27.6]} 52. Kg5 {[%clk 0:00:10.1]} 52... Be3+
{[%clk 0:00:25.9]} 53. Kf5 {[%clk 0:00:10.5]} 53... Rxh6 {[%clk 0:00:21.8]} 54.
Rxe5 {[%clk 0:00:09.4]} 54... Bd2 {[%clk 0:00:21.3]} 55. Ke4 {[%clk 0:00:06.1]}
55... Kb7 {[%clk 0:00:15.9]} 56. Rb5+ {[%clk 0:00:05.1]} 56... Ka6 {[%clk
0:00:14.6]} 57. Kd3 {[%clk 0:00:05.2]} 57... Bc3 {[%clk 0:00:13]} 58. Rb6+
{[%clk 0:00:05.4]} 58... Rxb6 {[%clk 0:00:11.6]} 59. axb6 {[%clk 0:00:06.3]}
59... Kxb6 {[%clk 0:00:11.7]} 60. Ke4 {[%clk 0:00:07.2]} 60... Kc5 {[%clk
0:00:10.9]} 61. f4 {[%clk 0:00:05.7]} 61... Kd6 {[%clk 0:00:09.5]} 62. Kf5
{[%clk 0:00:05.6]} 62... Ke7 {[%clk 0:00:06.2]} 63. Kg6 {[%clk 0:00:04.3]} 63...
Ke6 {[%clk 0:00:05.7]} 64. f5+ {[%clk 0:00:04.2]} 64... Ke7 {[%clk 0:00:05.8]}
65. Kg5 {[%clk 0:00:04.5]} 65... Kf7 {[%clk 0:00:03.2]} 66. Kf4 {[%clk 0:00:05]}
66... Kf6 {[%clk 0:00:03.2]} 67. Ke4 {[%clk 0:00:05.9]} 1-0

[Event "*** Titled Tuesday Blitz"]
[Site "Chess.com"]
[Date "2021.04.27"]
[Round "7"]
[White "chessmachine14"]
[Black "thechesscorner64"]
[Result "1-0"]
[WhiteElo "2275"]
[BlackElo "2376"]
[TimeControl "180+1"]
[EndTime "11:18:08 PDT"]
[Termination "chessmachine14 won by checkmate"]

1. d4 {[%clk 0:02:59.7]} 1... Nf6 {[%clk 0:02:56.7]} 2. Bg5 {[%clk 0:02:48.5]}
2... e6 {[%clk 0:02:56.8]} 3. e4 {[%clk 0:02:45.3]} 3... h6 {[%clk 0:02:56.6]}
4. Bxf6 {[%clk 0:02:45.6]} 4... Qxf6 {[%clk 0:02:56.4]} 5. Nc3 {[%clk
0:02:44.9]} 5... Bb4 {[%clk 0:02:56.3]} 6. Nf3 {[%clk 0:02:41.7]} 6... d6 {[%clk
0:02:55.1]} 7. Bd3 {[%clk 0:02:40.6]} 7... Nd7 {[%clk 0:02:50.6]} 8. Qd2 {[%clk
0:02:28.3]} 8... e5 {[%clk 0:02:47.2]} 9. a3 {[%clk 0:02:03.4]} 9... exd4 {[%clk
0:02:20.8]} 10. axb4 {[%clk 0:02:02.7]} 10... dxc3 {[%clk 0:02:20.8]} 11. Qxc3
{[%clk 0:01:55.4]} 11... Qxc3+ {[%clk 0:02:20.4]} 12. bxc3 {[%clk 0:01:55]}
12... O-O {[%clk 0:02:19.3]} 13. O-O {[%clk 0:01:50.3]} 13... a6 {[%clk
0:02:18.9]} 14. Ra5 {[%clk 0:01:30.6]} 14... Re8 {[%clk 0:02:09.1]} 15. Rfa1
{[%clk 0:01:24.7]} 15... Nf6 {[%clk 0:01:57.9]} 16. Nd2 {[%clk 0:01:23.1]} 16...
Bd7 {[%clk 0:01:49.1]} 17. b5 {[%clk 0:01:19.3]} 17... c5 {[%clk 0:01:22.7]} 18.
bxa6 {[%clk 0:01:15.1]} 18... b6 {[%clk 0:01:21.7]} 19. R5a2 {[%clk 0:01:10]}
19... b5 {[%clk 0:01:19.4]} 20. f3 {[%clk 0:00:56.2]} 20... c4 {[%clk
0:01:12.3]} 21. Bf1 {[%clk 0:00:55.9]} 21... d5 {[%clk 0:01:09.5]} 22. exd5
{[%clk 0:00:53.6]} 22... Nxd5 {[%clk 0:01:08.8]} 23. Ne4 {[%clk 0:00:53.4]}
23... Bc6 {[%clk 0:01:03.8]} 24. Rb2 {[%clk 0:00:42.1]} 24... Re7 {[%clk
0:00:57.9]} 25. Ra3 {[%clk 0:00:26.8]} 25... Rea7 {[%clk 0:00:35.9]} 26. Nc5
{[%clk 0:00:22.2]} 26... Nb6 {[%clk 0:00:24.8]} 27. Kf2 {[%clk 0:00:20.2]} 27...
Kf8 {[%clk 0:00:23.8]} 28. Rba2 {[%clk 0:00:19.8]} 28... Re7 {[%clk 0:00:20.7]}
29. Rb2 {[%clk 0:00:19]} 29... Nd5 {[%clk 0:00:19.6]} 30. Ne4 {[%clk 0:00:18.6]}
30... Nb6 {[%clk 0:00:18.8]} 31. Nd6 {[%clk 0:00:18.2]} 31... Na4 {[%clk
0:00:18.7]} 32. Rb4 {[%clk 0:00:18]} 32... Rxa6 {[%clk 0:00:16.2]} 33. Nxb5
{[%clk 0:00:18.1]} 33... Bxb5 {[%clk 0:00:16.3]} 34. Rxb5 {[%clk 0:00:18.5]}
34... Rea7 {[%clk 0:00:16.5]} 35. Rb8+ {[%clk 0:00:17.5]} 35... Ke7 {[%clk
0:00:16.7]} 36. Bxc4 {[%clk 0:00:17.6]} 36... Nb6 {[%clk 0:00:17.2]} 37. Rxa6
{[%clk 0:00:13.1]} 37... Rc7 {[%clk 0:00:12.1]} 38. Be2 {[%clk 0:00:12.5]} 38...
Nd5 {[%clk 0:00:11.6]} 39. Raa8 {[%clk 0:00:11.5]} 39... Nxc3 {[%clk 0:00:11.2]}
40. Re8+ {[%clk 0:00:11.3]} 40... Kf6 {[%clk 0:00:11.6]} 41. Rac8 {[%clk
0:00:10.9]} 41... Nd5 {[%clk 0:00:05.9]} 42. Rxc7 {[%clk 0:00:10.5]} 42... Nxc7
{[%clk 0:00:06.8]} 43. Rc8 {[%clk 0:00:10.5]} 43... Ne6 {[%clk 0:00:06.8]} 44.
c4 {[%clk 0:00:10.7]} 44... Ke5 {[%clk 0:00:07]} 45. c5 {[%clk 0:00:11.1]} 45...
f5 {[%clk 0:00:06.7]} 46. c6 {[%clk 0:00:11.3]} 46... Kd6 {[%clk 0:00:07.1]} 47.
Bc4 {[%clk 0:00:10.6]} 47... Nc5 {[%clk 0:00:04.5]} 48. Bb5 {[%clk 0:00:10.5]}
48... g5 {[%clk 0:00:04.3]} 49. Rh8 {[%clk 0:00:10.3]} 49... f4 {[%clk
0:00:03.8]} 50. Rxh6+ {[%clk 0:00:10.4]} 50... Kc7 {[%clk 0:00:04.3]} 51. h4
{[%clk 0:00:10]} 51... gxh4 {[%clk 0:00:04.1]} 52. Rxh4 {[%clk 0:00:10.1]} 52...
Ne6 {[%clk 0:00:04.6]} 53. Rh7+ {[%clk 0:00:09.6]} 53... Kb6 {[%clk 0:00:05.1]}
54. Bc4 {[%clk 0:00:09.6]} 54... Nd4 {[%clk 0:00:05.4]} 55. c7 {[%clk
0:00:09.8]} 55... Kb7 {[%clk 0:00:05.6]} 56. Bd3 {[%clk 0:00:09.4]} 56... Ne6
{[%clk 0:00:05.2]} 57. Bf5 {[%clk 0:00:09.4]} 57... Nxc7 {[%clk 0:00:05.3]} 58.
Ke2 {[%clk 0:00:08.4]} 58... Kb6 {[%clk 0:00:06.2]} 59. Rxc7 {[%clk 0:00:07.3]}
59... Kxc7 {[%clk 0:00:06.5]} 60. Kd3 {[%clk 0:00:08.2]} 60... Kd6 {[%clk
0:00:07.4]} 61. Ke4 {[%clk 0:00:08.2]} 61... Ke7 {[%clk 0:00:08.3]} 62. Kxf4
{[%clk 0:00:09.1]} 62... Kf6 {[%clk 0:00:09.2]} 63. g4 {[%clk 0:00:09.8]} 63...
Kg7 {[%clk 0:00:10.1]} 64. g5 {[%clk 0:00:09.5]} 64... Kf7 {[%clk 0:00:11]} 65.
Ke5 {[%clk 0:00:09.8]} 65... Kg7 {[%clk 0:00:11.9]} 66. g6 {[%clk 0:00:10.1]}
66... Kf8 {[%clk 0:00:12.7]} 67. Kf6 {[%clk 0:00:10.4]} 67... Kg8 {[%clk
0:00:13.6]} 68. Be6+ {[%clk 0:00:10.8]} 68... Kf8 {[%clk 0:00:14.5]} 69. g7+
{[%clk 0:00:11.2]} 69... Ke8 {[%clk 0:00:15]} 70. g8=Q# {[%clk 0:00:11.4]} 1-0

[Event "*** Titled Tuesday Blitz"]
[Site "Chess.com"]
[Date "2021.04.27"]
[Round "7"]
[White "Sam_ChessMood"]
[Black "Jumbo"]
[Result "1-0"]
[WhiteElo "2907"]
[BlackElo "2783"]
[TimeControl "180+1"]
[EndTime "11:18:13 PDT"]
[Termination "Sam_ChessMood won by checkmate"]

1. e4 {[%clk 0:03:00.9]} 1... c6 {[%clk 0:02:58.9]} 2. d4 {[%clk 0:02:59.3]}
2... d5 {[%clk 0:02:59.3]} 3. e5 {[%clk 0:02:59.9]} 3... Bf5 {[%clk 0:02:58.8]}
4. Nf3 {[%clk 0:03:00.1]} 4... e6 {[%clk 0:02:58.9]} 5. Be2 {[%clk 0:02:59.9]}
5... h6 {[%clk 0:02:58.2]} 6. O-O {[%clk 0:02:59.5]} 6... Ne7 {[%clk 0:02:58.2]}
7. a4 {[%clk 0:02:57.3]} 7... Nd7 {[%clk 0:02:56.8]} 8. a5 {[%clk 0:02:53.9]}
8... a6 {[%clk 0:02:56.7]} 9. c3 {[%clk 0:02:53.2]} 9... c5 {[%clk 0:02:56.6]}
10. dxc5 {[%clk 0:02:32.7]} 10... Nxc5 {[%clk 0:02:55.8]} 11. Nd4 {[%clk
0:02:32.8]} 11... Bh7 {[%clk 0:02:50.7]} 12. Nd2 {[%clk 0:02:06]} 12... Nc6
{[%clk 0:02:43.8]} 13. N2f3 {[%clk 0:02:05.2]} 13... Be7 {[%clk 0:02:32.4]} 14.
Re1 {[%clk 0:02:01]} 14... O-O {[%clk 0:02:29.3]} 15. Bf1 {[%clk 0:02:01.4]}
15... Qc7 {[%clk 0:02:26]} 16. Bf4 {[%clk 0:02:00]} 16... Ne4 {[%clk 0:02:16.3]}
17. Qa4 {[%clk 0:01:51.7]} 17... Bc5 {[%clk 0:01:27.2]} 18. Rec1 {[%clk
0:01:42.2]} 18... Ba7 {[%clk 0:01:22.3]} 19. Qa3 {[%clk 0:00:59.1]} 19... g5
{[%clk 0:01:03.9]} 20. Be3 {[%clk 0:00:52.6]} 20... Nxe5 {[%clk 0:01:02.3]} 21.
Nxe5 {[%clk 0:00:51.6]} 21... Qxe5 {[%clk 0:01:03.2]} 22. Nf3 {[%clk 0:00:48]}
22... Qb8 {[%clk 0:00:58.2]} 23. c4 {[%clk 0:00:45.8]} 23... g4 {[%clk
0:00:37.9]} 24. Ne1 {[%clk 0:00:45.5]} 24... d4 {[%clk 0:00:17.5]} 25. Bxh6
{[%clk 0:00:44]} 25... Rd8 {[%clk 0:00:12.9]} 26. c5 {[%clk 0:00:39.4]} 26...
Qe5 {[%clk 0:00:12]} 27. b4 {[%clk 0:00:36.1]} 27... Qf6 {[%clk 0:00:09.5]} 28.
f3 {[%clk 0:00:24.9]} 28... gxf3 {[%clk 0:00:08.7]} 29. gxf3 {[%clk 0:00:25.1]}
29... Qxh6 {[%clk 0:00:08.9]} 30. fxe4 {[%clk 0:00:25.6]} 30... Bxe4 {[%clk
0:00:08.1]} 31. Ra2 {[%clk 0:00:20.7]} 31... Bb8 {[%clk 0:00:07.6]} 32. Rd1
{[%clk 0:00:10.9]} 32... d3 {[%clk 0:00:06.5]} 33. Bxd3 {[%clk 0:00:08]} 33...
Qe3+ {[%clk 0:00:06.3]} 34. Kf1 {[%clk 0:00:08]} 34... Bf4 {[%clk 0:00:03.7]}
35. Re2 {[%clk 0:00:07.5]} 35... Bxd3 {[%clk 0:00:03.2]} 36. Rxd3 {[%clk
0:00:07.5]} 36... Rxd3 {[%clk 0:00:03.4]} 37. Qxd3 {[%clk 0:00:07.9]} 37... Qxd3
{[%clk 0:00:02.7]} 38. Nxd3 {[%clk 0:00:08.8]} 38... Bc7 {[%clk 0:00:01.7]} 39.
Rg2+ {[%clk 0:00:07.5]} 39... Kf8 {[%clk 0:00:01.8]} 40. Ke2 {[%clk 0:00:08]}
40... Ke7 {[%clk 0:00:02.3]} 41. h4 {[%clk 0:00:07.6]} 41... Rh8 {[%clk
0:00:03.1]} 42. Rg4 {[%clk 0:00:07.9]} 42... Kf6 {[%clk 0:00:02.5]} 43. c6
{[%clk 0:00:07.1]} 43... bxc6 {[%clk 0:00:02.2]} 44. Rc4 {[%clk 0:00:07.5]}
44... Bd6 {[%clk 0:00:01.8]} 45. Rxc6 {[%clk 0:00:07.8]} 45... Bg3 {[%clk
0:00:02.4]} 46. Rxa6 {[%clk 0:00:07.1]} 46... Rxh4 {[%clk 0:00:03.3]} 47. Rb6
{[%clk 0:00:06.8]} 47... Rh2+ {[%clk 0:00:02.9]} 48. Kf3 {[%clk 0:00:06.5]}
48... Be5 {[%clk 0:00:03.4]} 49. Nxe5 {[%clk 0:00:04.9]} 49... Kxe5 {[%clk
0:00:03.3]} 50. a6 {[%clk 0:00:05.6]} 50... Ra2 {[%clk 0:00:03.8]} 51. b5 {[%clk
0:00:05.7]} 51... f5 {[%clk 0:00:04.3]} 52. Rb7 {[%clk 0:00:04.5]} 52... Ra3+
{[%clk 0:00:04.7]} 53. Kf2 {[%clk 0:00:03.8]} 53... Ke4 {[%clk 0:00:04.5]} 54.
a7 {[%clk 0:00:03.9]} 54... Ra2+ {[%clk 0:00:05]} 55. Kf1 {[%clk 0:00:04]} 55...
f4 {[%clk 0:00:05.1]} 56. b6 {[%clk 0:00:04.4]} 56... Kf3 {[%clk 0:00:05.6]} 57.
Ke1 {[%clk 0:00:04.7]} 57... Ke3 {[%clk 0:00:06.1]} 58. Kd1 {[%clk 0:00:04.8]}
58... f3 {[%clk 0:00:06.6]} 59. Rf7 {[%clk 0:00:04.9]} 59... e5 {[%clk 0:00:06]}
60. b7 {[%clk 0:00:04.5]} 60... Rxa7 {[%clk 0:00:06.5]} 61. Rxf3+ {[%clk
0:00:03.5]} 61... Kxf3 {[%clk 0:00:05.9]} 62. b8=Q {[%clk 0:00:03.9]} 62... Rd7+
{[%clk 0:00:06.2]} 63. Ke1 {[%clk 0:00:03.7]} 63... Ke4 {[%clk 0:00:06.6]} 64.
Qb5 {[%clk 0:00:03.3]} 64... Rd4 {[%clk 0:00:06.3]} 65. Qc6+ {[%clk 0:00:03.2]}
65... Kf4 {[%clk 0:00:06.8]} 66. Ke2 {[%clk 0:00:03.7]} 66... Re4+ {[%clk
0:00:06.4]} 67. Kf2 {[%clk 0:00:03.7]} 67... Rd4 {[%clk 0:00:06.8]} 68. Qf6+
{[%clk 0:00:04]} 68... Ke4 {[%clk 0:00:07.3]} 69. Qf3# {[%clk 0:00:04.3]} 1-0